Cogmind - Beta 13 @@@ ROGUE MODE // 2024.04.03 @ 18:04:56 Player: lilya Result: Destroyed by 0E-M04(R) with Subdweller Laser Performance ------------- Evolutions (0) 0 Regions Visited (3) 600 Robots Destroyed (6) 30 Value Destroyed (126) 126 Prototype IDs (0) 0 Alien Tech Used (0) 0 Bonus (0) 0 TOTAL SCORE: 756 Bonus ------- None Cogmind --------- Core Integrity 0/250 Matter 260/300 Energy 170/170 System Corruption 0% Temperature Cool (6) Movement Rolling (110) Location -10/Subcaves Parts ------- > --- POWER (1) -------- Makeshift Power Source > --- PROPULSION (2) --- Subdweller Monowheel > --- UTILITY (2) ------ Signal Interpreter > --- WEAPON (2) ------- Light Assault Rifle > --- INVENTORY (5) ---- Sensor Array Small Laser Datajack Peak State ------------ > --- POWER ------------ Makeshift Power Source > --- PROPULSION ------- Subdweller Monowheel > --- UTILITY ---------- Signal Interpreter > --- WEAPON ----------- Light Assault Rifle Slug Cannon > --- INVENTORY -------- Sensor Array Small Laser Datajack [Rating: 12] Favorites ----------- Power Ion Engine Engine Ion Engine Propulsion Hover Unit Leg Aluminum Leg Wheel Compact Wheel Hover Unit Hover Unit Flight Unit Flight Unit Utility Signal Interpreter Storage Small Storage Unit Processor Signal Interpreter Weapon Small Laser Energy Gun Small Laser Ballistic Gun Light Assault Rifle Ballistic Cannon Slug Cannon Special Melee Weapon Datajack Build | -11 -10 -10 -10 ------- Run | Yrd Mat Min Sub Slots Evolved . | . . . . Power . | . . . . Propulsion . | . . . . Utility . | . . . . Weapon . | . . . . Parts Attached 23 | 7 7 3 6 Power 4 | 1 . 1 2 Engine 4 | 1 . 1 2 Core . | . . . . Reactor . | . . . . Propulsion 10 | 3 4 1 2 Treads . | . . . . Leg 2 | 2 . . . Wheel 2 | 1 . . 1 Hover 5 | . 4 1 . Flight 1 | . . . 1 Utility 2 | 1 1 . . Device . | . . . . Storage 1 | 1 . . . Processor 1 | . 1 . . Hackware . | . . . . Protection . | . . . . Artifact . | . . . . Weapon 7 | 2 2 1 2 Energy Gun 2 | 1 1 . . Energy Cannon . | . . . . Ballistic Gun 2 | 1 . . 1 Ballistic Cannon 2 | . . 1 1 Launcher . | . . . . Special Weapon . | . . . . Impact Weapon . | . . . . Slashing Weapon . | . . . . Piercing Weapon . | . . . . Special Melee Weapon 1 | . 1 . . Unidentified Prototypes . | . . . . Parts Lost 4 | . . . 4 Power 1 | . . . 1 Propulsion 2 | . . . 2 Utility . | . . . . Weapon 1 | . . . 1 Highest Loss Streak 2 | . . . 2 To Critical Strikes 1 | . . . 1 Average Slot Usage (%) 97 | . 98 100 90 Engine 14 | . 14 14 14 Leg 3 | . 22 . . Hover 22 | . 5 28 21 Storage 13 | . 14 14 10 Processor 13 | . 12 14 14 Energy Gun 13 | . 16 14 10 Ballistic Gun 5 | . 11 . 14 Ballistic Cannon 4 | . . 7 . Special Melee Weapon 3 | . . 6 . Naked Turns . | . . . . Heaviest Build 18 | 13 13 18 16 Greatest Support 20 | 20 20 12 20 Greatest Overweight (x) 1 | . . 1 1 Average Overweight (x) . | . . . . Largest Inventory Capacity 8 | 8 8 8 8 Average Capacity 7 | 6 8 8 7 Most Carried 8 | 7 8 8 8 Average Carried 7 | 3 7 7 6 Final Capacity 8 | 8 8 8 5 Final Carried 8 | 6 8 8 3 Class Distribution -------------------- 97% | Mutant Dominant Class ---------------- Mutant | -10/Materials Mutant | -10/Mines Mutant | -10/Subcaves Resources | -11 -10 -10 -10 ----------- Run | Yrd Mat Min Sub Matter Collected 424 | 253 65 91 15 Remotely . | . . . . Salvage Created 133 | . 65 31 37 Parts 11 | . 6 3 2 Haulers Intercepted . | . . . . Recyclers Shooed . | . . . . Parts Field Recycled . | . . . . Retrieved Matter . | . . . . Parts Self-Destructed . | . . . . Prevented . | . . . . Kills | -11 -10 -10 -10 ------- Run | Yrd Mat Min Sub Combat Hostiles Destroyed 4 | . 1 2 1 Guns 4 | . 1 2 1 Classes Destroyed 5 | . 3 1 1 Operator 1 | . 1 . . Watcher 1 | . 1 . . Swarmer 2 | . . 2 . Grunt 1 | . 1 . . Subdweller 1 | . . . 1 Best Kill Streak 2 | . 2 2 1 Combat Bots Only 2 | . 1 2 1 Max Kills in Single Turn 1 | . 1 1 1 Gunslinging . | . . . . Exploded . | . . . . Melee . | . . . . Uniques/NPCs Destroyed . | . . . . Combat | -11 -10 -10 -10 -------- Run | Yrd Mat Min Sub Hostile Shots Fired 91 | . 8 15 68 Missed 32 | . 3 3 26 Damage Taken 752 | . 58 100 594 Core 267 | . 12 20 235 Absorbed by Shields . | . . . . Core Remaining (%) 100 | 100 . . . Volleys Fired 20 | . 9 6 5 Largest 2 | . 2 2 2 Hottest 88 | . 60 88 60 Shots Fired 36 | . 18 8 10 Gun 34 | . 18 6 10 Cannon 2 | . . 2 . Launcher . | . . . . Special . | . . . . Kinetic 16 | . 9 2 5 Thermal 20 | . 9 6 5 Explosive . | . . . . Electromagnetic . | . . . . Robot Hit Streak 9 | . 7 2 9 Robot Miss Streak 4 | . 2 4 1 Penetration Max . | . . . . Secondary Targets . | . . . . Shots Hit Robots 25 | . 12 4 9 Core Hits 13 | . 7 2 4 Critical Kills . | . . . . Critical Parts Destroyed . | . . . . Critical Strikes . | . . . . Melee Attacks 1 | . . 1 . Impact . | . . . . Slashing . | . . . . Piercing . | . . . . Sneak Attacks 1 | . . 1 . Combat Hostiles . | . . . . Follow-up Attacks . | . . . . Damage Inflicted 268 | . 149 36 83 Guns 268 | . 149 36 83 Cannons . | . . . . Explosions . | . . . . Melee . | . . . . Ramming . | . . . . Kinetic 136 | . 96 . 40 Thermal 132 | . 53 36 43 Explosive . | . . . . Electromagnetic . | . . . . Impact . | . . . . Slashing . | . . . . Piercing . | . . . . Highest Corruption . | . . . . Average Corruption . | . . . . Corruption Purged . | . . . . Corruption Blocked . | . . . . Overload Shots . | . . . . Overflow Damage . | . . . . Projectiles . | . . . . Explosions . | . . . . Melee . | . . . . Knockbacks . | . . . . Impact . | . . . . Kinetic . | . . . . Secondary . | . . . . Self-Inflicted Damage . | . . . . Shots . | . . . . Rammed . | . . . . Targets Rammed . | . . . . Kicked . | . . . . Crushed . | . . . . Highest Temperature 82 | . 24 82 1 Average Temperature 33 | . 16 55 1 Received Heat Transfer 129 | . 30 12 87 Siege Activations . | . . . . Robots Corrupted . | . . . . Combat Hostiles . | . . . . Parts Fried . | . . . . Impact Corruptions . | . . . . Robots Melted . | . . . . Combat Hostiles . | . . . . Parts Melted 1 | . 1 . . Heat Transferred 300 | . 125 75 100 Parts Sabotaged . | . . . . Parts Stolen . | . . . . Parts Stripped . | . . . . Power Chain Reactions . | . . . . Alert | -11 -10 -10 -10 ------- Run | Yrd Mat Min Sub Peak Influence 124 | . 57 124 . Initial 22 | . . 22 . Average 35 | . 24 41 . Maximum Alert Level . | . . . . Low Security (%) 100 | 100 100 100 . Level 1 . | . . . . Level 2 . | . . . . Level 3 . | . . . . Level 4 . | . . . . Level 5 . | . . . . High Security . | . . . . Max Security . | . . . . Squads Dispatched 1 | . 1 . . Investigation . | . . . . Extermination . | . . . . Reinforcement 1 | . 1 . . Assault . | . . . . Garrison . | . . . . Intercept . | . . . . Searches Triggered . | . . . . Construction Impeded . | . . . . Haulers Reinforced . | . . . . Active Scanning Responses . | . . . . Cargo Convoy Interrupts . | . . . . Stealth | -11 -10 -10 -10 --------- Run | Yrd Mat Min Sub Distress Signals . | . . . . Communications Jammed . | . . . . Distress Signals . | . . . . Times Spotted 29 | . 4 7 18 Peak Tracking Total 9 | . 3 3 9 Tactical Retreats 5 | . . 3 2 Traps | -11 -10 -10 -10 ------- Run | Yrd Mat Min Sub Traps Triggered . | . . . . Indirectly . | . . . . Trap Hack Attempts . | . . . . Triggered . | . . . . Disarmed . | . . . . Reprogrammed . | . . . . Reused . | . . . . Traps Extracted . | . . . . Installed . | . . . . Triggered . | . . . . Machines | -11 -10 -10 -10 ---------- Run | Yrd Mat Min Sub Machines Disabled . | . . . . Max in Single Turn . | . . . . Machines Repaired . | . . . . Machines Dismantled . | . . . . Machines Sabotaged . | . . . . Overloaded Fab Kills . | . . . . Hacking | -11 -10 -10 -10 --------- Run | Yrd Mat Min Sub Machines Accessed . | . . . . Terminals . | . . . . Fabricators . | . . . . Repair Stations . | . . . . Recycling Units . | . . . . Scanalyzers . | . . . . Garrison Access . | . . . . Total Hacks . | . . . . Successful . | . . . . Failed . | . . . . Catastrophic . | . . . . Database Lockouts . | . . . . Manual . | . . . . Terminals . | . . . . Fabricators . | . . . . Repair Stations . | . . . . Recycling Units . | . . . . Scanalyzers . | . . . . Garrison Access . | . . . . Terminal Hacks . | . . . . Fabricator Hacks . | . . . . Repair Station Hacks . | . . . . Recycling Unit Hacks . | . . . . Scanalyzer . | . . . . Garrison Access Hacks . | . . . . Unauthorized Hacks . | . . . . Terminals . | . . . . Fabricators . | . . . . Repair Stations . | . . . . Recycling Units . | . . . . Scanalyzers . | . . . . Garrison Access . | . . . . Data Cores Recovered . | . . . . Used . | . . . . Hacking Detections . | . . . . Full Trace Events . | . . . . Feedback Events . | . . . . Feedback Blocked . | . . . . Robot Schematics Acquired . | . . . . Robots Built . | . . . . Authchips . | . . . . Time . | . . . . Total Robot Build Rating . | . . . . Part Schematics Acquired . | . . . . Parts Built . | . . . . Authchips . | . . . . Time . | . . . . Total Part Build Rating . | . . . . Parts Repaired . | . . . . Time . | . . . . Parts Recycled . | . . . . Recycled Matter . | . . . . Retrieved Matter . | . . . . Retrieved Components . | . . . . Parts Scanalyzed . | . . . . Part Schematics Acquired . | . . . . Parts Damaged . | . . . . Bothacking | -11 -10 -10 -10 ------------ Run | Yrd Mat Min Sub Used RIF Installer . | . . . . Robots Hacked . | . . . . Non-combat . | . . . . Combat . | . . . . Robot Hacks Applied . | . . . . Relay Couplers Released . | . . . . Fabnet Peak Effective % . | . . . . Robots Rewired . | . . . . Allies Hacked . | . . . . Hacks Repelled . | . . . . Allies | -11 -10 -10 -10 -------- Run | Yrd Mat Min Sub Total Allies . | . . . . Largest Group . | . . . . Highest-Rated Group . | . . . . Highest-Rated Ally . | . . . . Total Orders . | . . . . Ally Attacks . | . . . . Total Damage . | . . . . Kills . | . . . . Allies Corrupted . | . . . . Allies Melted . | . . . . Intel | -11 -10 -10 -10 ------- Run | Yrd Mat Min Sub Robot Analysis Total . | . . . . Derelict Logs Recovered 1 | . . 1 . Drone Launches . | . . . . Drone Recoveries . | . . . . Exploration | -11 -10 -10 -10 ------------- Run | Yrd Mat Min Sub Turns Passed 1251 | 68 194 689 300 Spaces Moved 1173 | 50 140 628 355 Core 9 | 8 . . 1 Treads . | . . . . Legs 104 | 16 88 . . Wheels 47 | 26 . . 21 Hover 926 | . 52 628 246 Flight 87 | . . . 87 Fastest Speed 40 | 50 56 56 40 Average Speed 73 | 98 96 74 60 Slowest Speed 120 | 120 120 116 120 Overloaded Moves . | . . . . Propulsion Burnouts . | . . . . Robots Hopped . | . . . . Cave-ins Triggered . | . . . . Exploration Rate (%) 38 | 3 29 96 25 Regions Visited 3 Branch Regions 2 Pre-discovered Areas 1 | . . 1 . Known Exits Taken 2 | . 1 1 . Unknown Exits Taken 1 | 1 . . . Scrap Searched 2 | . . 1 1 Spaces Dug . | . . . . Terrain Destroyed 2 | . . 2 . Melee . | . . . . Projectile 2 | . . 2 . AOE . | . . . . Terrain Rammed . | . . . . Walls Destroyed . | . . . . Machines Disabled . | . . . . Actions | -11 -10 -10 -10 --------- Run | Yrd Mat Min Sub Total 1528 | 68 182 843 435 Wait 258 | . 7 195 56 Move 1170 | 49 139 627 355 Hop . | . . . . Pick Up 32 | 12 11 5 4 Fast Attach 2 | . . 1 1 Attach 11 | 6 1 . 4 Detach . | . . . . Swap 10 | 1 6 2 1 Drop 24 | . 9 6 9 Fire 20 | . 9 6 5 Melee 1 | . . 1 . Ram . | . . . . Kick . | . . . . Crush . | . . . . Escape Stasis . | . . . . Rewire . | . . . . Trap . | . . . . Miscellaneous . | . . . . Route ------- -11/Scrapyard -10/Materials -10/Mines (discovered 3 exits: *Mat x2 / *Sub) -10/Subcaves History --------- Turn | Location | Event 47 | -11/Scrapyard | Discovered new exit (range 12) 69 | -11/Scrapyard | Entered Materials 252 | -10/Materials | Discovered new exit (range 15) 261 | -10/Materials | Identified exit to Mines 263 | -10/Materials | Entered Mines 266 | -10/Mines | Learned location of Zion (-7) 268 | -10/Mines | Discovered new exit (range 7) 271 | -10/Mines | Identified exit to Materials 291 | -10/Mines | Met a Derelict bent on vengeance 307 | -10/Mines | Build established: Mutant 342 | -10/Mines | A weapon hastily lodged in a ceiling crevice suddenly fell to the ground 709 | -10/Mines | Discovered exit to Materials (range 6) 917 | -10/Mines | Discovered new exit (range 6) 922 | -10/Mines | Identified exit to Subcaves 952 | -10/Mines | Entered Subcaves 960 | -10/Subcaves | Ambushed by Subdwellers from Twisted Machinery 1026 | -10/Subcaves | Ambushed by swarm of Subdwellers 1064 | -10/Subcaves | Lost 3 allies 1177 | -10/Subcaves | Core integrity fell below 50% 1198 | -10/Subcaves | Shifting Twisted Machinery released Spk. Treads 1238 | -10/Subcaves | Core integrity fell below 20% 1251 | -10/Subcaves | A Subdweller sparked back to life 1251 | -10/Subcaves | A Subdweller sparked back to life 1251 | -10/Subcaves | A Subdweller sparked back to life 1252 | -10/Subcaves | Destroyed by 0E-M04(R) with Subdweller Laser Last Messages --------------- Dropped Sml. Laser. Spk. Treads falls loose from the Twisted Machinery. Dropped Lgt. Ion Engine. Acquired Mak. Power Source. Dropped Hover Unit. Flight Unit destroyed. K1-WYA(R) destroyed. 45-AP5(R) affixes Scrap Shield Fragment to Scrap Shield. Critical hit (Destroy). Slug Cannon destroyed. 45-AP5(R) affixes Scrap Shield Fragment to Scrap Shield. PV-IWE(R) creaks and sparks as it begins to move. 0W-LB8(R) creaks and sparks as it begins to move. 0E-M04(R) creaks and sparks as it begins to move. Map ----- +----------------------------------------------------+ | ?????????????????????# "" ##???????????????????? | | ?????????????????????# "" ##??????????????????? | | ??????????????????????# "" #??????????????????? | | ???????????????????????#= " " #??????????????????? | | ?????????????#####??####* ### #??????????????????? | | ????????????## #??# #?????????????????????? | | ??? ######### #### #?????????????????????? | | ? ## #?????????????????????? | | ? ##?????????????????????? | | ? ####??????????????????????? | | ?? ###### ##?????????????????????????? | | ?????????# ##??????????????????????????? | | ?????????# []##???????????????????????????? | | ?????????## #????????????????????????????? | | # ##????# #????????????????????????????? | | ?" " #### #####????????????????????????????? | | ??""" ##????????????????????????????????? | | ??"""## #?????????????????????????????????? | | ??????##### !&#?????????????????????????????????? | | ??????????##!=*#????######<##????????????????????? | | ????"??????##=%#????# <#????????????????????? | | ???""" #??###!=###### <#????????????????????? | | ???" " "###" Rs ## ## RR #????????????????????? | | ?????# "#"= s s <